lending/lending_fUSD_20250621
["ID","MTS","AMOUNT","RATE_DAILY","PERIOD"]
[366805758,1750465843536,-261.76,0.00024657,2]
[366805759,1750465843547,-490.0,0.00024657,2]
[366805760,1750465843559,-490.0,0.00024657,2]
[366805761,1750465843569,-490.0,0.00024657,2]
[366805762,1750465843578,-490.0,0.00024657,2]
[366805763,1750465843588,-490.0,0.00024657,2]
[366805764,1750465843598,-490.0,0.00024657,2]
[366805765,1750465843609,-490.0,0.00024657,2]
[366805766,1750465843619,-500.0,0.00024657,2]
[366805767,1750465843629,-490.0,0.00024657,2]
[366805768,1750465843639,-490.0,0.00024657,2]
[366805769,1750465843650,-490.0,0.00024657,2]
[366805770,1750465843660,-490.0,0.00024657,2]
[366805771,1750465843670,-490.0,0.00024657,2]
[366805772,1750465843680,-490.0,0.00024657,2]
[366805773,1750465843691,-490.0,0.00024657,2]
[366805774,1750465843700,-490.0,0.00024657,2]
[366805775,1750465843710,-210.0,0.00024657,2]
[366805776,1750465843720,-490.0,0.00024657,2]
[366805777,1750465843730,-490.0,0.00024657,2]
[366805778,1750465843741,-490.0,0.00024657,2]
[366805779,1750465843751,-342.32568125,0.00024657,2]
[366805780,1750465843760,-490.0,0.00024657,2]
[366805781,1750465843771,-508.32722548,0.00024657,2]
[366805782,1750465843781,-552.3,0.00024657,2]
[366805783,1750465843791,-490.0,0.00024657,2]
[366805784,1750465843801,-490.0,0.00024657,2]
[366805785,1750465843810,-490.0,0.00024657,2]
[366805786,1750465843819,-490.0,0.00024657,2]
[366805787,1750465843829,-508.0,0.00024657,2]
[366805788,1750465843839,-490.0,0.00024657,2]
[366805789,1750465843849,-490.0,0.00024657,2]
[366805790,1750465843863,-490.0,0.00024657,2]
[366805791,1750465843874,-490.0,0.00024657,2]
[366805792,1750465843883,-490.0,0.00024657,2]
[366805793,1750465843893,-374.9545623,0.00024657,2]
[366805794,1750465843905,-490.0,0.00024657,2]
[366805795,1750465843914,-210.0,0.00024657,2]
[366805796,1750465843924,-490.0,0.00024657,2]
[366805797,1750465843935,-490.0,0.00024657,2]
[366805798,1750465843945,-490.0,0.00024657,2]
[366805799,1750465843955,-490.0,0.00024657,2]
[366805800,1750465843964,-490.0,0.00024657,2]
[366805801,1750465843974,-490.0,0.00024657,2]
[366805802,1750465843983,-210.0,0.00024657,2]
[366805803,1750465843993,-212.7,0.00024657,2]
[366805804,1750465844002,-490.0,0.00024657,2]
[366805805,1750465844012,-490.0,0.00024657,2]
[366805806,1750465844022,-490.0,0.00024657,2]
[366805807,1750465844032,-490.0,0.00024657,2]
[366805808,1750465844042,-490.0,0.00024657,2]
[366805809,1750465844052,-490.0,0.00024657,2]
[366805810,1750465844063,-490.0,0.00024657,2]
[366805811,1750465844073,-490.0,0.00024657,2]
[366805812,1750465844083,-210.0,0.00024657,2]
[366805813,1750465844092,-490.0,0.00024657,2]
[366805814,1750465844102,-833.72,0.00024657,2]
[366805815,1750465844112,-220.96,0.00024657,2]
[366805816,1750465844122,-490.0,0.00024657,2]
[366805817,1750465844132,-210.0,0.00024657,2]
[366805818,1750465844141,-210.0,0.00024657,2]
[366805819,1750465844151,-766.57,0.00024657,2]
[366805820,1750465844161,-490.0,0.00024657,2]
[366805821,1750465844170,-490.0,0.00024657,2]
[366805822,1750465844180,-490.0,0.00024657,2]
[366805823,1750465844190,-302.68,0.00024657,2]
[366805824,1750465844199,-490.0,0.00024657,2]
[366805825,1750465844209,-672.63,0.00024657,2]
[366805826,1750465844219,-490.0,0.00024657,2]
[366805827,1750465844228,-1435.61,0.00024657,2]
[366805828,1750465844238,-2562.11,0.00024657,2]
[366805829,1750465844247,-298.331675,0.00024657,2]
[366805830,1750465844257,-170.11366423,0.00024657,2]
[366805831,1750465844267,-490.0,0.00024657,2]
[366805832,1750465844278,-1049.44,0.00024657,2]
[366805833,1750465844288,-490.0,0.00024657,2]
[366805834,1750465844298,-210.0,0.00024657,2]
[366805835,1750465844308,-679.07,0.00024657,2]
[366805836,1750465844318,-490.0,0.00024657,2]
[366805837,1750465844328,-490.0,0.00024657,2]
[366805838,1750465844338,-490.0,0.00024657,2]
[366805839,1750465844349,-350.0,0.00024657,2]
[366805840,1750465844360,-490.0,0.00024657,2]
[366805841,1750465844370,-490.0,0.00024657,2]
[366805842,1750465844380,-490.0,0.00024657,2]
[366805843,1750465844390,-490.0,0.00024657,2]
[366805844,1750465844400,-490.0,0.00024657,2]
[366805845,1750465844411,-490.0,0.00024657,2]
[366805846,1750465844421,-490.0,0.00024657,2]
[366805847,1750465844431,-490.0,0.00024657,2]
[366805848,1750465844441,-490.0,0.00024657,2]
[366805849,1750465844451,-490.0,0.00024657,2]
[366805850,1750465844461,-490.0,0.00024657,2]
[366805851,1750465844472,-210.0,0.00024657,2]
[366805852,1750465844482,-490.0,0.00024657,2]
[366805853,1750465844492,-490.0,0.00024657,2]
[366805854,1750465844502,-490.0,0.00024657,2]
[366805855,1750465844512,-490.0,0.00024657,2]
[366805856,1750465844522,-490.0,0.00024657,2]
[366805857,1750465844533,-490.0,0.00024657,2]
[366805858,1750465844543,-549.14,0.00024657,2]
[366805859,1750465844553,-280.0,0.00024657,2]
[366805860,1750465844563,-490.0,0.00024657,2]
[366805861,1750465844572,-490.0,0.00024657,2]
[366805862,1750465844582,-490.0,0.00024657,2]
[366805863,1750465844593,-490.0,0.00024657,2]
[366805864,1750465844603,-336.31,0.00024657,2]
[366805865,1750465844613,-490.0,0.00024657,2]
[366805866,1750465844624,-490.0,0.00024657,2]
[366805867,1750465844634,-416.94,0.00024657,2]
[366805868,1750465844644,-490.0,0.00024657,2]
[366805869,1750465844654,-490.0,0.00024657,2]
[366805870,1750465844664,-490.0,0.00024657,2]
[366805871,1750465844674,-490.0,0.00024657,2]
[366805872,1750465844684,-490.0,0.00024657,2]
[366805873,1750465844695,-490.0,0.00024657,2]
[366805874,1750465844704,-500.0,0.00024657,2]
[366805875,1750465844713,-490.0,0.00024657,2]
[366805876,1750465844723,-500.0,0.00024657,2]
[366805877,1750465844732,-506.18459283,0.00024657,2]
[366805878,1750465844742,-490.0,0.00024657,2]
[366805879,1750465844752,-490.0,0.00024657,2]
[366805880,1750465844762,-490.0,0.00024657,2]
[366805881,1750465844772,-490.0,0.00024657,2]
[366805882,1750465844783,-490.0,0.00024657,2]
[366805883,1750465844793,-490.0,0.00024657,2]
[366805884,1750465844803,-490.0,0.00024657,2]
[366805885,1750465844813,-490.0,0.00024657,2]
[366805886,1750465844823,-490.0,0.00024657,2]
[366805887,1750465844834,-490.0,0.00024657,2]
[366805888,1750465844844,-580.08,0.00024657,2]
[366805889,1750465844857,-490.0,0.00024657,2]
[366805890,1750465844868,-490.0,0.00024657,2]
[366805891,1750465844877,-490.0,0.00024657,2]
[366805892,1750465844888,-490.0,0.00024657,2]
[366805893,1750465844899,-490.0,0.00024657,2]
[366805894,1750465845093,-450.2,0.00024657,2]
[366805895,1750465845131,-490.0,0.00024657,2]
[366805896,1750465845142,-490.0,0.00024657,2]
[366805897,1750465845152,-800.28,0.00024657,2]
[366805898,1750465845162,-490.0,0.00024657,2]
[366805899,1750465845172,-1710.27,0.00024657,2]
[366805900,1750465845181,-490.0,0.00024657,2]
[366805901,1750465845191,-490.0,0.00024657,2]
[366805902,1750465845200,-1011.08,0.00024657,2]
[366805903,1750465845210,-490.0,0.00024657,2]
[366805904,1750465845220,-824.64,0.00024657,2]
[366805905,1750465845229,-490.0,0.00024657,2]
[366805906,1750465845239,-490.0,0.00024657,2]
[366805907,1750465845249,-490.0,0.00024657,2]
[366805908,1750465845259,-490.0,0.00024657,2]
[366805909,1750465845268,-490.0,0.00024657,2]
[366805910,1750465845278,-500.0,0.00024657,2]
[366805911,1750465845288,-598.3,0.00024657,2]
[366805912,1750465845299,-500.0,0.00024657,2]
[366805913,1750465845308,-500.0,0.00024657,2]
[366805914,1750465845319,-490.0,0.00024657,2]
[366805915,1750465845329,-490.0,0.00024657,2]
[366805916,1750465845339,-490.0,0.00024657,2]
[366805917,1750465845348,-490.0,0.00024657,2]
[366805918,1750465845360,-490.0,0.00024657,2]
[366805919,1750465845371,-490.0,0.00024657,2]
[366805920,1750465845381,-490.0,0.00024657,2]
[366805921,1750465845392,-559.01,0.00024657,2]
[366805922,1750465845402,-674.34,0.00024657,2]
[366805923,1750465845413,-490.0,0.00024657,2]
[366805924,1750465845423,-490.0,0.00024657,2]
[366805925,1750465845434,-350.0,0.00024657,2]
[366805926,1750465845444,-490.0,0.00024657,2]
[366805927,1750465845454,-490.0,0.00024657,2]
[366805928,1750465845464,-490.0,0.00024657,2]
[366805929,1750465845474,-490.0,0.00024657,2]
[366805930,1750465845484,-490.0,0.00024657,2]
[366805931,1750465845494,-490.0,0.00024657,2]
[366805932,1750465845504,-490.0,0.00024657,2]
[366805933,1750465845515,-490.0,0.00024657,2]
[366805934,1750465845525,-490.0,0.00024657,2]
[366805935,1750465845535,-598.76,0.00024657,2]
[366805936,1750465845546,-490.0,0.00024657,2]
[366805937,1750465845556,-490.0,0.00024657,2]
[366805938,1750465845567,-490.0,0.00024657,2]
[366805939,1750465845577,-210.0,0.00024657,2]
[366805940,1750465845588,-490.0,0.00024657,2]
[366805941,1750465845598,-490.0,0.00024657,2]
[366805942,1750465845610,-490.0,0.00024657,2]
[366805943,1750465845622,-1017.95,0.00024657,2]
[366805944,1750465845632,-490.0,0.00024657,2]
[366805945,1750465845642,-874.99,0.00024657,2]
[366805946,1750465845652,-490.0,0.00024657,2]
[366805947,1750465845662,-490.0,0.00024657,2]
[366805948,1750465845672,-210.0,0.00024657,2]
[366805949,1750465845682,-1635.04,0.00024657,2]
[366805950,1750465845692,-490.0,0.00024657,2]
[366805951,1750465845702,-357.18,0.00024657,2]
[366805952,1750465845712,-490.0,0.00024657,2]
[366805953,1750465845722,-490.0,0.00024657,2]
[366805954,1750465845732,-490.0,0.00024657,2]
[366805955,1750465845743,-600.64,0.00024657,2]
[366805956,1750465845753,-490.0,0.00024657,2]
[366805957,1750465845763,-585.51,0.00024657,2]
[366805958,1750465845774,-490.0,0.00024657,2]
[366805959,1750465845784,-490.0,0.00024657,2]
[366805960,1750465845795,-490.0,0.00024657,2]
[366805961,1750465845804,-490.0,0.00024657,2]
[366805962,1750465845815,-490.0,0.00024657,2]
[366805963,1750465845826,-772.56,0.00024657,2]
[366805964,1750465845836,-490.0,0.00024657,2]
[366805965,1750465845846,-490.0,0.00024657,2]
[366805966,1750465845859,-165.6,0.00024657,2]
[366805967,1750465845870,-7998.18,0.00024657,2]
[366805968,1750465845880,-3401.51,0.00024657,2]
[366805969,1750465845891,-610.71,0.00024657,2]
[366805970,1750465845901,-490.0,0.00024657,2]
[366805971,1750465845912,-490.0,0.00024657,2]
[366805972,1750465845922,-490.0,0.00024657,2]
[366805973,1750465845934,-630.0,0.00024657,2]
[366805974,1750465845944,-490.0,0.00024657,2]
[366805975,1750465845955,-490.0,0.00024657,2]
[366805976,1750465845966,-490.0,0.00024657,2]
[366805977,1750465845975,-490.0,0.00024657,2]
[366805978,1750465845986,-490.0,0.00024657,2]
[366805979,1750465845997,-490.0,0.00024657,2]
[366805980,1750465846007,-490.0,0.00024657,2]
[366805981,1750465846017,-490.0,0.00024657,2]
[366805982,1750465846028,-490.0,0.00024657,2]
[366805983,1750465846038,-490.0,0.00024657,2]
[366805984,1750465846048,-490.0,0.00024657,2]
[366805985,1750465846059,-490.0,0.00024657,2]
[366805986,1750465846069,-490.0,0.00024657,2]
[366805987,1750465846079,-1054.34,0.00024657,2]
[366805988,1750465846089,-490.0,0.00024657,2]
[366805989,1750465846099,-589.09,0.00024657,2]
[366805990,1750465846111,-490.0,0.00024657,2]
[366805991,1750465846121,-490.0,0.00024657,2]
[366805992,1750465846130,-490.0,0.00024657,2]
[366805993,1750465846140,-280.0,0.00024657,2]
[366805994,1750465846150,-490.0,0.00024657,2]
[366805995,1750465846160,-490.0,0.00024657,2]
[366805996,1750465846170,-500.0,0.00024657,2]
[366805997,1750465846180,-500.0,0.00024657,2]
[366805998,1750465846190,-490.0,0.00024657,2]
[366805999,1750465846200,-490.0,0.00024657,2]
[366806000,1750465846210,-490.0,0.00024657,2]
[366806001,1750465846221,-2797.27,0.00024657,2]
[366806002,1750465846231,-486.69343222,0.00024657,2]
[366806003,1750465846241,-490.0,0.00024657,2]
[366806004,1750465846251,-490.0,0.00024657,2]
[366806005,1750465846261,-490.0,0.00024657,2]
[366806006,1750465846271,-490.0,0.00024657,2]
[366806007,1750465846281,-734.07,0.00024657,2]
[366806008,1750465846291,-490.0,0.00024657,2]
[366806009,1750465846302,-490.0,0.00024657,2]
[366806010,1750465846312,-490.0,0.00024657,2]
[366806011,1750465846322,-490.0,0.00024657,2]
[366806012,1750465846332,-490.0,0.00024657,2]
[366806013,1750465846343,-1461.26,0.00024657,2]
[366806014,1750465846352,-1461.26,0.00024657,2]
[366806015,1750465846363,-1461.26,0.00024657,2]
[366806016,1750465846373,-6040.64,0.00024657,2]
[366806017,1750465846383,-490.0,0.00024657,2]
[366806018,1750465846395,-490.0,0.00024657,2]
[366806019,1750465846405,-490.0,0.00024657,2]
[366806020,1750465846415,-490.0,0.00024657,2]
[366806021,1750465846425,-490.0,0.00024657,2]
[366806022,1750465846436,-490.0,0.00024657,2]
[366806023,1750465846446,-490.0,0.00024657,2]
[366806024,1750465846456,-671.4,0.00024657,2]
[366806025,1750465846467,-490.0,0.00024657,2]
[366806026,1750465846477,-490.0,0.00024657,2]
[366806027,1750465846487,-695.46,0.00024657,2]
[366806028,1750465846498,-490.0,0.00024657,2]
[366806029,1750465846507,-1700.5,0.00024657,2]
[366806030,1750465846518,-490.0,0.00024657,2]
[366806031,1750465846528,-592.07,0.00024657,2]
[366806032,1750465846537,-490.0,0.00024657,2]
[366806033,1750465846547,-1463.8,0.00024657,2]
[366806034,1750465846558,-490.0,0.00024657,2]
[366806035,1750465846568,-490.0,0.00024657,2]
[366806036,1750465846578,-812.01,0.00024657,2]
[366806037,1750465846588,-490.0,0.00024657,2]
[366806038,1750465846598,-490.0,0.00024657,2]
[366806039,1750465846608,-490.0,0.00024657,2]
[366806040,1750465846618,-490.0,0.00024657,2]
[366806041,1750465846628,-280.0,0.00024657,2]
[366806042,1750465846638,-630.0,0.00024657,2]
[366806043,1750465846647,-490.0,0.00024657,2]
[366806044,1750465846658,-914.01,0.00024657,2]
[366806045,1750465846667,-490.0,0.00024657,2]
[366806046,1750465846678,-490.0,0.00024657,2]
[366806047,1750465846687,-490.0,0.00024657,2]
[366806048,1750465846697,-490.0,0.00024657,2]
[366806049,1750465846707,-490.0,0.00024657,2]
[366806050,1750465846717,-521.18,0.00024657,2]
[366806051,1750465846726,-594.23261996,0.00024657,2]
[366806052,1750465846736,-490.0,0.00024657,2]
[366806053,1750465846746,-584.38,0.00024657,2]
[366806054,1750465846756,-210.0,0.00024657,2]
[366806055,1750465846766,-258.34936163,0.00024657,2]
[366806056,1750465846776,-490.0,0.00024657,2]
[366806057,1750465846786,-490.0,0.00024657,2]
[366806058,1750465846796,-1198.59,0.00024657,2]
[366806059,1750465846806,-490.0,0.00024657,2]
[366806060,1750465846815,-490.0,0.00024657,2]
[366806061,1750465846825,-246.44,0.00024657,2]
[366806062,1750465846835,-300.0,0.00024657,2]
[366806063,1750465846845,-1824.83,0.00024657,2]
[366806064,1750465846858,-490.0,0.00024657,2]
[366806065,1750465846868,-490.0,0.00024657,2]
[366806066,1750465846877,-490.0,0.00024657,2]
[366806067,1750465846887,-490.0,0.00024657,2]
[366806068,1750465846898,-632.1,0.00024657,2]
[366806069,1750465846908,-490.0,0.00024657,2]
[366806070,1750465846919,-490.0,0.00024657,2]
[366806071,1750465846929,-528.05,0.00024657,2]
[366806072,1750465846939,-490.0,0.00024657,2]
[366806073,1750465846950,-492.91926444,0.00024657,2]
[366806074,1750465846960,-490.0,0.00024657,2]
[366806075,1750465846971,-490.0,0.00024657,2]
[366806076,1750465846981,-490.0,0.00024657,2]
[366806077,1750465846991,-1696.27,0.00024657,2]
[366806078,1750465847001,-1021.62,0.00024657,2]
[366806079,1750465847011,-490.0,0.00024657,2]
[366806080,1750465847021,-1322.91,0.00024657,2]
[366806081,1750465847031,-490.0,0.00024657,2]
[366806082,1750465847041,-490.0,0.00024657,2]
[366806083,1750465847050,-1102.68,0.00024657,2]
[366806084,1750465847060,-490.0,0.00024657,2]
[366806085,1750465847070,-490.0,0.00024657,2]
[366806086,1750465847080,-1000.0,0.00024657,2]
[366806087,1750465847090,-210.0,0.00024657,2]
[366806088,1750465847100,-490.0,0.00024657,2]
[366806089,1750465847111,-490.0,0.00024657,2]
[366806090,1750465847121,-490.0,0.00024657,2]
[366806091,1750465847130,-490.0,0.00024657,2]
[366806092,1750465847140,-280.0,0.00024657,2]
[366806093,1750465847149,-490.0,0.00024657,2]
[366806094,1750465847160,-490.0,0.00024657,2]
[366806095,1750465847170,-490.0,0.00024657,2]
[366806096,1750465847180,-490.0,0.00024657,2]
[366806097,1750465847189,-490.0,0.00024657,2]
[366806098,1750465847199,-490.0,0.00024657,2]
[366806099,1750465847209,-490.0,0.00024657,2]
[366806100,1750465847218,-590.26,0.00024657,2]
[366806101,1750465847228,-1228.72,0.00024657,2]
[366806102,1750465847239,-490.0,0.00024657,2]
[366806103,1750465847248,-490.0,0.00024657,2]
[366806104,1750465847258,-490.0,0.00024657,2]
[366806105,1750465847268,-490.0,0.00024657,2]
[366806106,1750465847278,-490.0,0.00024657,2]
[366806107,1750465847287,-490.0,0.00024657,2]
[366806108,1750465847297,-490.0,0.00024657,2]
[366806109,1750465847308,-842.87,0.00024657,2]
[366806110,1750465847318,-490.0,0.00024657,2]
[366806111,1750465847328,-490.0,0.00024657,2]
[366806112,1750465847339,-490.0,0.00024657,2]
[366806113,1750465847349,-490.0,0.00024657,2]
[366806114,1750465847360,-490.0,0.00024657,2]
[366806115,1750465847370,-490.0,0.00024657,2]
[366806116,1750465847380,-490.0,0.00024657,2]
[366806117,1750465847390,-490.0,0.00024657,2]
[366806118,1750465847400,-490.0,0.00024657,2]
[366806119,1750465847410,-490.0,0.00024657,2]
[366806120,1750465847420,-490.0,0.00024657,2]
[366806121,1750465847431,-490.0,0.00024657,2]
[366806122,1750465847440,-490.0,0.00024657,2]
[366806123,1750465847451,-490.0,0.00024657,2]
[366806124,1750465847460,-490.0,0.00024657,2]
[366806125,1750465847471,-490.0,0.00024657,2]
[366806126,1750465847481,-490.0,0.00024657,2]
[366806127,1750465847492,-490.0,0.00024657,2]
[366806128,1750465847502,-490.0,0.00024657,2]
[366806129,1750465847513,-490.0,0.00024657,2]
[366806130,1750465847523,-634.65983777,0.00024657,2]
[366806131,1750465847533,-490.0,0.00024657,2]
[366806132,1750465847544,-490.0,0.00024657,2]
[366806133,1750465847554,-490.0,0.00024657,2]
[366806134,1750465847564,-490.0,0.00024657,2]
[366806135,1750465847574,-490.0,0.00024657,2]
[366806136,1750465847670,-490.0,0.00024657,2]
[366806137,1750465847681,-630.0,0.00024657,2]
[366806138,1750465847692,-490.0,0.00024657,2]
[366806139,1750465847701,-488.16840237,0.00024657,2]
[366806140,1750465847712,-490.0,0.00024657,2]
[366806141,1750465847722,-490.0,0.00024657,2]
[366806142,1750465847731,-490.0,0.00024657,2]
[366806143,1750465847740,-490.0,0.00024657,2]
[366806144,1750465847750,-490.0,0.00024657,2]
[366806145,1750465847759,-630.58,0.00024657,2]
[366806146,1750465847770,-490.0,0.00024657,2]
[366806147,1750465847780,-211.34652111,0.00024657,2]
[366806148,1750465847791,-490.0,0.00024657,2]
[366806149,1750465847802,-817.53,0.00024657,2]
[366806150,1750465847812,-2895.02,0.00024657,2]
[366806151,1750465847823,-490.0,0.00024657,2]
[366806152,1750465847833,-513.0,0.00024657,2]
[366806153,1750465847845,-490.0,0.00024657,2]
[366806154,1750465847858,-490.0,0.00024657,2]
[366806155,1750465847868,-490.0,0.00024657,2]
[366806156,1750465847878,-490.0,0.00024657,2]
[366806157,1750465847887,-490.0,0.00024657,2]
[366806158,1750465847898,-1000.0,0.00024658,2]
[366806159,1750465847908,-500.0,0.00024673,2]
[366806160,1750465847917,-500.0,0.00024673,2]
[366806161,1750465847927,-500.0,0.00024673,2]
[366806162,1750465847938,-500.0,0.00024673,2]
[366806163,1750465847948,-500.0,0.00024673,2]
[366806164,1750465847958,-502.48405449,0.00024673,2]
[366806165,1750465847968,-500.0,0.00024673,2]
[366806166,1750465847977,-500.0,0.00024673,2]
[366806167,1750465847987,-554.76756505,0.00024673,2]
[366806168,1750465847997,-500.0,0.00024673,2]
[366806169,1750465848007,-500.0,0.00024673,2]
[366806170,1750465848016,-500.0,0.00024673,2]
[366806171,1750465848025,-152.89761624,0.00024673,2]
[366806172,1750465848035,-500.0,0.00024673,2]
[366806173,1750465848046,-168.0,0.00024673,2]
[366806174,1750465848055,-282.06971387,0.00024683,2]
[366806175,1750465848065,-490.0,0.00024699,4]
[366806176,1750465848074,-490.0,0.00024699,4]
[366806177,1750465848084,-490.0,0.00024699,4]
[366806178,1750465848093,-448.62083329,0.00024699,4]
[366806179,1750465848103,-490.0,0.00024699,4]
[366806180,1750465848114,-237.66352729,0.000247,2]
[366806181,1750465848124,-300.0,0.000247,2]
[366806182,1750465848133,-3000.0,0.000247,9]
[366806183,1750465848143,-769.0,0.00024723,2]
[366806184,1750465848152,-354.77,0.00024723,2]
[366806185,1750465848163,-276.88527,0.0002473,2]
[366806186,1750465848172,-237.66352729,0.00024748,2]
[366806187,1750465848181,-168.0,0.00024751,7]
[366806188,1750465848191,-168.0,0.00024765,2]
[366806189,1750465848201,-3691.12513208,0.00024769,2]
[366806190,1750465848210,-2110.0,0.0002478,2]
[366806191,1750465848220,-237.66352729,0.00024797,2]
[366806192,1750465848229,-500.0,0.00024799,4]
[366806193,1750465848239,-500.0,0.00024799,4]
[366806194,1750465848248,-500.0,0.00024799,4]
[366806195,1750465848258,-500.0,0.00024799,4]
[366806196,1750465848268,-500.0,0.00024799,4]
[366806197,1750465848277,-1461.26,0.00024799,4]
[366806198,1750465848287,-4500.0,0.000248,9]
[366806199,1750465848297,-230270.293171,0.000248,2]
[366806200,1750465848308,-167.83168722,0.00024811,2]
[366806201,1750465848318,-237.66352729,0.00024845,2]
[366806202,1750465848328,-150.0,0.00024848,2]
[366806203,1750465848338,-1000.0,0.0002487,2]
[366806204,1750465848348,-150.0,0.0002489,2]
[366806205,1750465848357,-173.67996158,0.0002489,2]
[366806206,1750465848367,-237.66352729,0.00024894,2]
[366806207,1750465848377,-349.84606729,0.00024897,2]
[366806208,1750465848387,-500.0,0.00024899,2]
[366806209,1750465848397,-500.0,0.00024899,4]
[366806210,1750465848407,-210.99,0.000249,2]
[366806211,1750465848416,-6000.0,0.000249,9]
[366806212,1750465848426,-19895.5589115,0.000249,2]
[366806213,1750465848436,-1243.47243197,0.00024901,2]
[366806214,1750465848445,-200.0,0.00024904,2]
[366806215,1750465848456,-200.0,0.00024904,2]
[366806216,1750465848467,-3351.21,0.0002491,2]
[366806217,1750465848478,-8704.30702379,0.00024911,2]
[366806218,1750465848489,-9887.88516046,0.0002492,5]
[366806219,1750465848500,-302487.13658798,0.0002492,5]
[366806220,1750465849080,-553.49971257,0.0002492,5]
[366806221,1750465849098,-3187.21199654,0.0002492,5]
[366806222,1750465849114,-373.45220002,0.0002492,5]
[366806223,1750465849465,-490.0,0.00024657,2]
[366806224,1750465849481,-4693.02836681,0.0002492,5]
[366806225,1750465849618,-10718.0,0.0002492,5]
[366806226,1750465849655,-16959.96591746,0.0002492,5]
[366806227,1750465849671,-620.0,0.0002492,5]
[366806228,1750465849692,-164039.12822964,0.0002492,5]
[366806229,1750465849705,-88950.38935018,0.00024921,2]
[366806230,1750465849724,-1769.15582953,0.00024921,2]
[366806231,1750465850176,-5267.22190923,0.00024921,2]
[366806232,1750465850258,-51972.09504499,0.00024921,2]
[366806233,1750465850281,-2202.86655458,0.00024921,2]
[366806234,1750465850401,-90413.44817182,0.00024921,2]
[366806235,1750465850418,-1650.78381267,0.00024921,2]
[366806236,1750465932072,203.0,0.0002279,2]
[366806243,1750466204735,2163.86540321,0.00013537,2]
[366806244,1750466204759,3636.13459679,0.00013537,2]
[366806245,1750466227553,5800.0,0.00013529,2]
[366806246,1750466250391,5800.0,0.0001352,2]
[366806248,1750466272820,4763.86540321,0.00013512,2]
[366806249,1750466272844,1036.13459679,0.00013512,2]
[366806250,1750466295605,5800.0,0.00013503,2]
[366806251,1750466304398,167.57,0.00018882,2]
[366806252,1750466318355,5800.0,0.00013495,2]
[366806253,1750466341289,5800.0,0.00013486,2]
[366806254,1750466364084,1396.29540321,0.00013478,2]
[366806255,1750466364109,4403.70459679,0.00013478,2]
[366806259,1750466495928,250.0,0.00015,2]
[366806260,1750466552305,220.94,0.00013699,2]
[366806261,1750466552693,220.94,0.00020187,2]
[366806265,1750466963100,-203.0,0.00022408,2]
[366806266,1750466963122,-600.0,0.00022789,4]
[366806267,1750466963143,-300.0,0.00022789,2]
[366806269,1750467032248,-293.405753,0.0002296,2]
[366806270,1750467032258,-600.0,0.00023076,4]
[366806271,1750467032268,-300.0,0.00023076,2]